[Event "Early-Titled-Tuesday-Blitz-May-14-2024"]
[Site "Chess.com"]
[Date "2024.05.14"]
[Round "9"]
[White "santosalberto1987"]
[Black "Witik"]
[Result "0-1"]
[WhiteElo "2605"]
[BlackElo "2768"]
[TimeControl "180+1"]
[EndTime "9:48:48 PDT"]
[Termination "Witik won by resignation"]

1. e4 {[%clk 0:03:00.9]} 1... c6 {[%clk 0:02:57]} 2. c4 {[%clk 0:03:00.6]} 2...
d5 {[%clk 0:02:55.7]} 3. exd5 {[%clk 0:03:01.5]} 3... cxd5 {[%clk 0:02:56.6]} 4.
cxd5 {[%clk 0:03:01.5]} 4... Nf6 {[%clk 0:02:57.3]} 5. Qa4+ {[%clk 0:03:01.8]}
5... Nbd7 {[%clk 0:02:57.5]} 6. Bc4 {[%clk 0:03:01.9]} 6... g6 {[%clk
0:02:55.4]} 7. Nc3 {[%clk 0:03:01.9]} 7... Bg7 {[%clk 0:02:55.6]} 8. Nf3 {[%clk
0:03:02.4]} 8... O-O {[%clk 0:02:52.2]} 9. d3 {[%clk 0:03:02.5]} 9... a6 {[%clk
0:02:52.6]} 10. Qa3 {[%clk 0:03:01.9]} 10... b6 {[%clk 0:02:52.9]} 11. O-O
{[%clk 0:03:01.4]} 11... Bb7 {[%clk 0:02:53.1]} 12. Re1 {[%clk 0:03:01.8]} 12...
Re8 {[%clk 0:02:53.4]} 13. h3 {[%clk 0:02:47.3]} 13... b5 {[%clk 0:02:35.4]} 14.
Bb3 {[%clk 0:02:47]} 14... Nb6 {[%clk 0:02:23.6]} 15. d6 {[%clk 0:02:46.3]}
15... Qxd6 {[%clk 0:02:04.6]} 16. Ng5 {[%clk 0:02:46.1]} 16... Nbd5 {[%clk
0:00:58.1]} 17. Qxd6 {[%clk 0:02:34.6]} 17... exd6 {[%clk 0:00:58.2]} 18. Bd2
{[%clk 0:02:33.8]} 18... h6 {[%clk 0:00:54.2]} 19. Nge4 {[%clk 0:02:33]} 19...
Nxc3 {[%clk 0:00:44.5]} 20. Nxc3 {[%clk 0:02:28.9]} 20... b4 {[%clk 0:00:37.5]}
21. Na4 {[%clk 0:02:27]} 21... a5 {[%clk 0:00:33.3]} 22. Nb6 {[%clk 0:02:25.6]}
22... Ra6 {[%clk 0:00:23.8]} 23. Rxe8+ {[%clk 0:02:10.8]} 23... Nxe8 {[%clk
0:00:24.7]} 24. Re1 {[%clk 0:02:09.8]} 24... Nf6 {[%clk 0:00:19.3]} 25. Nc4
{[%clk 0:02:06.3]} 25... a4 {[%clk 0:00:18.2]} 26. Bc2 {[%clk 0:02:06]} 26...
Nd5 {[%clk 0:00:12.9]} 27. Re8+ {[%clk 0:02:01.1]} 27... Kh7 {[%clk 0:00:13]}
28. Rd8 {[%clk 0:01:57]} 28... Bf6 {[%clk 0:00:08.9]} 29. Rxd6 {[%clk
0:01:55.2]} 29... Rxd6 {[%clk 0:00:07.9]} 30. Nxd6 {[%clk 0:01:56.1]} 30... Bc6
{[%clk 0:00:08.5]} 31. Nc4 {[%clk 0:01:52.7]} 31... Bb5 {[%clk 0:00:07]} 32. Bc1
{[%clk 0:01:40.8]} 32... Bd4 {[%clk 0:00:07]} 33. Kf1 {[%clk 0:01:37.8]} 33...
g5 {[%clk 0:00:07.2]} 34. Ne3 {[%clk 0:01:34.2]} 34... Nf4 {[%clk 0:00:06.6]}
35. Nf5 {[%clk 0:01:28.3]} 35... Bf6 {[%clk 0:00:05]} 36. Bxf4 {[%clk
0:01:26.4]} 36... gxf4 {[%clk 0:00:05.6]} 37. b3 {[%clk 0:01:25.2]} 37... a3
{[%clk 0:00:06]} 38. Nd6 {[%clk 0:01:18.1]} 38... Bc6 {[%clk 0:00:06.2]} 39. Ne4
{[%clk 0:01:16.9]} 39... Bd4 {[%clk 0:00:06.3]} 40. Nd2 {[%clk 0:01:12.8]} 40...
Kg6 {[%clk 0:00:05.5]} 41. Nf3 {[%clk 0:01:13.2]} 41... Bxf3 {[%clk 0:00:05.5]}
42. gxf3 {[%clk 0:01:13.4]} 42... Kg5 {[%clk 0:00:06]} 43. Kg2 {[%clk
0:01:12.9]} 43... Kh4 {[%clk 0:00:06.4]} 44. Bd1 {[%clk 0:01:13]} 44... f6
{[%clk 0:00:06.5]} 45. Be2 {[%clk 0:01:13.3]} 45... Kg5 {[%clk 0:00:07.1]} 46.
Bd1 {[%clk 0:01:13.5]} 46... Kf5 {[%clk 0:00:06.8]} 47. Kf1 {[%clk 0:01:13.9]}
47... Bc3 {[%clk 0:00:06.1]} 48. Ke2 {[%clk 0:01:13.5]} 48... Ke5 {[%clk
0:00:06.6]} 49. Bc2 {[%clk 0:00:51.1]} 49... Bd4 {[%clk 0:00:06.7]} 50. Bb1
{[%clk 0:00:48.6]} 50... Bc5 {[%clk 0:00:06.8]} 51. Bc2 {[%clk 0:00:45.9]} 51...
Kd4 {[%clk 0:00:07.2]} 52. Kd2 {[%clk 0:00:45.5]} 52... Be7 {[%clk 0:00:07]} 53.
Bb1 {[%clk 0:00:45.4]} 53... f5 {[%clk 0:00:07.5]} 54. Bc2 {[%clk 0:00:31.8]}
54... Bh4 {[%clk 0:00:08.4]} 55. Bd1 {[%clk 0:00:29.7]} 55... Bxf2 {[%clk
0:00:08.7]} 56. Be2 {[%clk 0:00:27.9]} 56... Be3+ {[%clk 0:00:07.7]} 57. Kc2
{[%clk 0:00:28]} 57... Bg1 {[%clk 0:00:05.9]} 58. Kd2 {[%clk 0:00:27.9]} 58...
Bh2 {[%clk 0:00:06.5]} 59. Bd1 {[%clk 0:00:27.6]} 59... Bg3 {[%clk 0:00:06.4]}
60. Be2 {[%clk 0:00:27.8]} 60... Bf2 {[%clk 0:00:06.7]} 61. Bd1 {[%clk
0:00:28.1]} 61... Be3+ {[%clk 0:00:06.5]} 62. Kc2 {[%clk 0:00:28.3]} 62... Bg1
{[%clk 0:00:06.7]} 63. Kd2 {[%clk 0:00:28.5]} 63... Bh2 {[%clk 0:00:06.9]} 64.
Be2 {[%clk 0:00:28.4]} 64... h5 {[%clk 0:00:07.5]} 65. Bd1 {[%clk 0:00:28.6]}
65... h4 {[%clk 0:00:08.1]} 66. Be2 {[%clk 0:00:29]} 66... Bg1 {[%clk
0:00:08.7]} 67. Bd1 {[%clk 0:00:29]} 67... Be3+ {[%clk 0:00:09.3]} 68. Kc2
{[%clk 0:00:29.3]} 68... Bf2 {[%clk 0:00:09.4]} 69. Kd2 {[%clk 0:00:29.3]} 69...
Ke5 {[%clk 0:00:10.1]} 70. Be2 {[%clk 0:00:29]} 70... Bd4 {[%clk 0:00:10.7]} 71.
Bd1 {[%clk 0:00:28.9]} 71... Bb2 {[%clk 0:00:11.4]} 72. Be2 {[%clk 0:00:28.9]}
72... Kd4 {[%clk 0:00:12]} 73. Bd1 {[%clk 0:00:28.5]} 73... Bc3+ {[%clk
0:00:12.1]} 74. Ke2 {[%clk 0:00:28.9]} 74... Bb2 {[%clk 0:00:11.4]} 75. Kd2
{[%clk 0:00:28.7]} 75... Ba1 {[%clk 0:00:11.7]} 76. Bc2 {[%clk 0:00:25.2]} 76...
Ke5 {[%clk 0:00:10.9]} 77. Bd1 {[%clk 0:00:24.2]} 77... Bd4 {[%clk 0:00:11.8]}
78. Bc2 {[%clk 0:00:24.2]} 78... Be3+ {[%clk 0:00:12.4]} 79. Ke2 {[%clk
0:00:24.1]} 79... Kd4 {[%clk 0:00:13.3]} 80. Bb1 {[%clk 0:00:20.4]} 80... Kc3
{[%clk 0:00:13.7]} 81. d4 {[%clk 0:00:20.6]} 81... Kb2 {[%clk 0:00:13.8]} 82.
Bxf5 {[%clk 0:00:18.8]} 82... Kxa2 {[%clk 0:00:13.7]} 83. d5 {[%clk 0:00:14.7]}
83... Kb2 {[%clk 0:00:13.7]} 0-1

[Event "Early-Titled-Tuesday-Blitz-May-14-2024"]
[Site "Chess.com"]
[Date "2024.05.14"]
[Round "9"]
[White "Antosha_Chekhonte"]
[Black "Orujov2008"]
[Result "1-0"]
[WhiteElo "2606"]
[BlackElo "2739"]
[TimeControl "180+1"]
[EndTime "9:48:52 PDT"]
[Termination "Antosha_Chekhonte won on time"]

1. e4 {[%clk 0:03:00.9]} 1... c5 {[%clk 0:02:58.3]} 2. Nf3 {[%clk 0:03:00.7]}
2... d6 {[%clk 0:02:58.7]} 3. c3 {[%clk 0:03:00.9]} 3... Nf6 {[%clk 0:02:58.6]}
4. Be2 {[%clk 0:03:01.5]} 4... Nc6 {[%clk 0:02:52.3]} 5. d4 {[%clk 0:03:01.3]}
5... cxd4 {[%clk 0:02:42.4]} 6. cxd4 {[%clk 0:03:02.2]} 6... g6 {[%clk
0:02:41.6]} 7. Nc3 {[%clk 0:03:01.2]} 7... Bg7 {[%clk 0:02:41.5]} 8. O-O {[%clk
0:03:01]} 8... O-O {[%clk 0:02:42.1]} 9. h3 {[%clk 0:02:54.1]} 9... Bd7 {[%clk
0:02:40.8]} 10. d5 {[%clk 0:02:49.9]} 10... Nb8 {[%clk 0:02:37.7]} 11. Bf4
{[%clk 0:02:43.1]} 11... Na6 {[%clk 0:02:36.7]} 12. Rc1 {[%clk 0:02:37.1]} 12...
Rc8 {[%clk 0:02:35.9]} 13. Re1 {[%clk 0:02:30.1]} 13... Nc5 {[%clk 0:02:35.5]}
14. Bf1 {[%clk 0:02:30.1]} 14... Qa5 {[%clk 0:02:23]} 15. Bd2 {[%clk 0:02:04.4]}
15... Qb6 {[%clk 0:02:11.8]} 16. Rb1 {[%clk 0:01:57]} 16... Na6 {[%clk
0:02:00.5]} 17. Be3 {[%clk 0:01:55.2]} 17... Qa5 {[%clk 0:01:55.6]} 18. a3
{[%clk 0:01:42.7]} 18... Ra8 {[%clk 0:01:45.8]} 19. Bd4 {[%clk 0:01:38.3]} 19...
Qc7 {[%clk 0:01:34.9]} 20. b4 {[%clk 0:01:34.7]} 20... Rfc8 {[%clk 0:01:23.4]}
21. Rc1 {[%clk 0:01:32.2]} 21... Qd8 {[%clk 0:01:23]} 22. Qd2 {[%clk 0:01:27.4]}
22... Ne8 {[%clk 0:01:22]} 23. Bxg7 {[%clk 0:01:24.4]} 23... Kxg7 {[%clk
0:01:19.8]} 24. Qd4+ {[%clk 0:01:09.3]} 24... Kg8 {[%clk 0:01:18.5]} 25. e5
{[%clk 0:01:08.5]} 25... dxe5 {[%clk 0:01:18.3]} 26. Qxe5 {[%clk 0:01:08.9]}
26... e6 {[%clk 0:01:15.3]} 27. Rcd1 {[%clk 0:00:45.2]} 27... Qc7 {[%clk
0:01:08.8]} 28. Nb5 {[%clk 0:00:31.9]} 28... Qxe5 {[%clk 0:01:03.2]} 29. Nxe5
{[%clk 0:00:32.8]} 29... Bxb5 {[%clk 0:00:58.7]} 30. Bxb5 {[%clk 0:00:21]} 30...
exd5 {[%clk 0:00:57.8]} 31. Bxa6 {[%clk 0:00:14.7]} 31... bxa6 {[%clk
0:00:57.3]} 32. Rxd5 {[%clk 0:00:15.5]} 32... Rc2 {[%clk 0:00:51.7]} 33. Rd7
{[%clk 0:00:15.1]} 33... Rc7 {[%clk 0:00:48.4]} 34. Red1 {[%clk 0:00:13.3]}
34... Rac8 {[%clk 0:00:44.9]} 35. Nxf7 {[%clk 0:00:11.4]} 35... Nf6 {[%clk
0:00:38.6]} 36. Nh6+ {[%clk 0:00:10.5]} 36... Kh8 {[%clk 0:00:38.2]} 37. Rxc7
{[%clk 0:00:09.1]} 37... Rxc7 {[%clk 0:00:39.1]} 38. Rd6 {[%clk 0:00:08.1]}
38... Kg7 {[%clk 0:00:36.9]} 39. Ng4 {[%clk 0:00:07.3]} 39... Ne4 {[%clk
0:00:24.4]} 40. Rxa6 {[%clk 0:00:07.2]} 40... h5 {[%clk 0:00:08.2]} 41. Ne5
{[%clk 0:00:06.7]} 41... g5 {[%clk 0:00:08.5]} 42. f3 {[%clk 0:00:06.7]} 42...
Rc1+ {[%clk 0:00:07.4]} 43. Kh2 {[%clk 0:00:06.9]} 43... Nd2 {[%clk 0:00:05.8]}
44. Rxa7+ {[%clk 0:00:03.1]} 44... Kf6 {[%clk 0:00:05.6]} 45. Kg3 {[%clk
0:00:03.5]} 45... Kxe5 {[%clk 0:00:04.8]} 46. Ra5+ {[%clk 0:00:04.2]} 46... Kf6
{[%clk 0:00:04.9]} 47. h4 {[%clk 0:00:05.1]} 47... Nf1+ {[%clk 0:00:04.5]} 48.
Kf2 {[%clk 0:00:05.6]} 48... gxh4 {[%clk 0:00:04]} 49. Rxh5 {[%clk 0:00:06.5]}
49... Nd2 {[%clk 0:00:03.5]} 50. Rxh4 {[%clk 0:00:06.5]} 50... Ra1 {[%clk
0:00:02.9]} 51. Rf4+ {[%clk 0:00:06.1]} 51... Kg5 {[%clk 0:00:02.8]} 52. Rd4
{[%clk 0:00:06.6]} 52... Nb3 {[%clk 0:00:02.3]} 53. Rd3 {[%clk 0:00:06.5]} 53...
Ra2+ {[%clk 0:00:02.6]} 54. Kg3 {[%clk 0:00:06.7]} 54... Nc1 {[%clk 0:00:02.5]}
55. Rd5+ {[%clk 0:00:06.7]} 55... Kf6 {[%clk 0:00:02.4]} 56. Ra5 {[%clk
0:00:07.6]} 56... Ne2+ {[%clk 0:00:01.7]} 57. Kg4 {[%clk 0:00:08.2]} 57... Nd4
{[%clk 0:00:01.8]} 58. g3 {[%clk 0:00:08.4]} 58... Nc2 {[%clk 0:00:02.4]} 59.
Ra6+ {[%clk 0:00:08.2]} 59... Kg7 {[%clk 0:00:02.2]} 60. b5 {[%clk 0:00:08.6]}
60... Nxa3 {[%clk 0:00:00.8]} 61. b6 {[%clk 0:00:08]} 61... Rb2 {[%clk
0:00:00.8]} 62. Rxa3 {[%clk 0:00:07.1]} 62... Rb4+ {[%clk 0:00:01.7]} 63. f4
{[%clk 0:00:07]} 63... Rxb6 {[%clk 0:00:02.6]} 64. Ra5 {[%clk 0:00:07.4]} 64...
Kg6 {[%clk 0:00:03.5]} 65. Rc5 {[%clk 0:00:05.9]} 65... Rd6 {[%clk 0:00:03.4]}
66. Rg5+ {[%clk 0:00:06.4]} 66... Kf6 {[%clk 0:00:03.3]} 67. Ra5 {[%clk
0:00:07.3]} 67... Rd3 {[%clk 0:00:03.4]} 68. Kh4 {[%clk 0:00:07.6]} 68... Rd1
{[%clk 0:00:03.3]} 69. Kg4 {[%clk 0:00:07.1]} 69... Rd3 {[%clk 0:00:03.1]} 70.
Ra6+ {[%clk 0:00:07.4]} 70... Kg7 {[%clk 0:00:03]} 71. Kh4 {[%clk 0:00:07.8]}
71... Rd1 {[%clk 0:00:02.6]} 72. g4 {[%clk 0:00:08.1]} 72... Rh1+ {[%clk
0:00:02.8]} 73. Kg5 {[%clk 0:00:08.7]} 73... Rb1 {[%clk 0:00:03.7]} 74. Ra7+
{[%clk 0:00:08.6]} 74... Kg8 {[%clk 0:00:03.7]} 75. f5 {[%clk 0:00:09]} 75...
Rb6 {[%clk 0:00:03.9]} 76. f6 {[%clk 0:00:09.1]} 76... Rb4 {[%clk 0:00:03.2]}
77. Kh5 {[%clk 0:00:07.4]} 77... Kf8 {[%clk 0:00:02.1]} 78. g5 {[%clk
0:00:07.3]} 78... Kg8 {[%clk 0:00:01.7]} 79. Kg6 {[%clk 0:00:07.5]} 79... Rb8
{[%clk 0:00:01.4]} 80. Rg7+ {[%clk 0:00:07.6]} 1-0

[Event "Early-Titled-Tuesday-Blitz-May-14-2024"]
[Site "Chess.com"]
[Date "2024.05.14"]
[Round "9"]
[White "Lucky_Puncher"]
[Black "Flameboard08"]
[Result "1/2-1/2"]
[WhiteElo "2569"]
[BlackElo "2711"]
[TimeControl "180+1"]
[EndTime "9:48:54 PDT"]
[Termination "Game drawn by repetition"]

1. d4 {[%clk 0:03:00.9]} 1... b6 {[%clk 0:02:58.9]} 2. e4 {[%clk 0:02:59.5]}
2... Bb7 {[%clk 0:02:56.4]} 3. d5 {[%clk 0:02:59.6]} 3... Nf6 {[%clk 0:02:51.1]}
4. Bd3 {[%clk 0:02:59.1]} 4... e6 {[%clk 0:02:51]} 5. c4 {[%clk 0:02:58.6]} 5...
exd5 {[%clk 0:02:49.4]} 6. cxd5 {[%clk 0:02:58.9]} 6... c6 {[%clk 0:02:48.4]} 7.
dxc6 {[%clk 0:02:57.5]} 7... dxc6 {[%clk 0:02:48.7]} 8. Nc3 {[%clk 0:02:54.5]}
8... Bb4 {[%clk 0:02:47.6]} 9. Ne2 {[%clk 0:02:54.6]} 9... O-O {[%clk
0:02:46.6]} 10. O-O {[%clk 0:02:53.8]} 10... Nbd7 {[%clk 0:02:47.1]} 11. Bf4
{[%clk 0:02:52.7]} 11... Re8 {[%clk 0:02:45.8]} 12. f3 {[%clk 0:02:50.9]} 12...
Ne5 {[%clk 0:02:41.6]} 13. Bc2 {[%clk 0:02:32]} 13... Nc4 {[%clk 0:02:36.8]} 14.
Qc1 {[%clk 0:02:31.4]} 14... Nh5 {[%clk 0:02:32.6]} 15. Bg5 {[%clk 0:02:29.5]}
15... Bc5+ {[%clk 0:02:15.8]} 16. Kh1 {[%clk 0:02:28.9]} 16... f6 {[%clk
0:02:16.3]} 17. Bh4 {[%clk 0:02:28.4]} 17... Ne3 {[%clk 0:02:13.4]} 18. Re1
{[%clk 0:02:27.7]} 18... Qc7 {[%clk 0:01:36.6]} 19. Na4 {[%clk 0:02:23.7]} 19...
Nxc2 {[%clk 0:01:34.4]} 20. Qxc2 {[%clk 0:02:23.6]} 20... Bd6 {[%clk 0:01:35.1]}
21. h3 {[%clk 0:02:01.5]} 21... Rad8 {[%clk 0:01:22.3]} 22. Rad1 {[%clk
0:02:00.2]} 22... Qe7 {[%clk 0:01:06.7]} 23. Nac3 {[%clk 0:01:56.9]} 23... Qe5
{[%clk 0:00:48]} 24. f4 {[%clk 0:01:17]} 24... Nxf4 {[%clk 0:00:39.7]} 25. Bg3
{[%clk 0:01:16.4]} 25... g5 {[%clk 0:00:39.4]} 26. Rf1 {[%clk 0:01:06.8]} 26...
Bb8 {[%clk 0:00:22.4]} 27. Rxd8 {[%clk 0:01:04.3]} 27... Rxd8 {[%clk 0:00:22.2]}
28. Nxf4 {[%clk 0:01:04.9]} 28... gxf4 {[%clk 0:00:20.6]} 29. Bxf4 {[%clk
0:01:05.4]} 29... Qe6 {[%clk 0:00:21]} 30. Bxb8 {[%clk 0:01:01.3]} 30... Rxb8
{[%clk 0:00:21.9]} 31. Qa4 {[%clk 0:01:01.3]} 31... a5 {[%clk 0:00:20.7]} 32.
Qd4 {[%clk 0:00:59.3]} 32... c5 {[%clk 0:00:12.4]} 33. Qxf6 {[%clk 0:00:58.3]}
33... Qxf6 {[%clk 0:00:12.7]} 34. Rxf6 {[%clk 0:00:59.2]} 34... Ba8 {[%clk
0:00:11.7]} 35. a4 {[%clk 0:00:58.6]} 35... Kg7 {[%clk 0:00:10.4]} 36. Rd6
{[%clk 0:00:58.1]} 36... Kf7 {[%clk 0:00:07.1]} 37. Kh2 {[%clk 0:00:56.5]} 37...
Ke7 {[%clk 0:00:07]} 38. e5 {[%clk 0:00:56.9]} 38... h5 {[%clk 0:00:05.4]} 39.
Rh6 {[%clk 0:00:56.6]} 39... Rg8 {[%clk 0:00:04.7]} 40. g3 {[%clk 0:00:48.7]}
40... Rd8 {[%clk 0:00:05.4]} 41. g4 {[%clk 0:00:34.8]} 41... hxg4 {[%clk
0:00:06.3]} 42. hxg4 {[%clk 0:00:35.7]} 42... Rd2+ {[%clk 0:00:06.5]} 43. Kg3
{[%clk 0:00:36.3]} 43... Rxb2 {[%clk 0:00:07.2]} 44. Nb5 {[%clk 0:00:30.4]}
44... Rb3+ {[%clk 0:00:05]} 45. Kh4 {[%clk 0:00:28.8]} 45... Rb4 {[%clk
0:00:04.8]} 46. Nd6 {[%clk 0:00:27]} 46... Bd5 {[%clk 0:00:04.1]} 47. Nf5+
{[%clk 0:00:27.1]} 47... Kf8 {[%clk 0:00:04.4]} 48. Kg5 {[%clk 0:00:20.7]} 48...
Rxa4 {[%clk 0:00:03.6]} 49. Rxb6 {[%clk 0:00:20.8]} 49... Ra1 {[%clk 0:00:02.9]}
50. Rd6 {[%clk 0:00:20.3]} 50... Be4 {[%clk 0:00:02.7]} 51. Rf6+ {[%clk
0:00:19.9]} 51... Ke8 {[%clk 0:00:03]} 52. Nd6+ {[%clk 0:00:20.5]} 52... Ke7
{[%clk 0:00:03.7]} 53. Nxe4 {[%clk 0:00:21.4]} 53... Re1 {[%clk 0:00:03.9]} 54.
Rf4 {[%clk 0:00:20.9]} 54... c4 {[%clk 0:00:03.6]} 55. Kf5 {[%clk 0:00:20.5]}
55... a4 {[%clk 0:00:02.5]} 56. Nf6 {[%clk 0:00:20.8]} 56... a3 {[%clk
0:00:01.9]} 57. Rxc4 {[%clk 0:00:20.8]} 57... a2 {[%clk 0:00:02.1]} 58. Nd5+
{[%clk 0:00:19.9]} 58... Kf8 {[%clk 0:00:02]} 59. Rc8+ {[%clk 0:00:19.1]} 59...
Kf7 {[%clk 0:00:01.5]} 60. Rc7+ {[%clk 0:00:19.6]} 60... Ke8 {[%clk 0:00:01.5]}
61. Ra7 {[%clk 0:00:14.8]} 61... a1=Q {[%clk 0:00:01.4]} 62. Rxa1 {[%clk
0:00:15.4]} 62... Rxa1 {[%clk 0:00:02.1]} 63. g5 {[%clk 0:00:15.9]} 63... Ra6
{[%clk 0:00:02.7]} 64. g6 {[%clk 0:00:15.6]} 64... Kf8 {[%clk 0:00:03.3]} 65.
Nf4 {[%clk 0:00:15.3]} 65... Kg7 {[%clk 0:00:01.9]} 66. Nh5+ {[%clk 0:00:15.5]}
66... Kf8 {[%clk 0:00:02.5]} 67. e6 {[%clk 0:00:15.3]} 67... Ra5+ {[%clk
0:00:02.7]} 68. Kg4 {[%clk 0:00:12.2]} 68... Re5 {[%clk 0:00:02.1]} 69. Nf4
{[%clk 0:00:11.3]} 69... Kg7 {[%clk 0:00:02.3]} 70. Kf3 {[%clk 0:00:10.3]} 70...
Re1 {[%clk 0:00:02.2]} 71. Kg4 {[%clk 0:00:10.8]} 71... Re5 {[%clk 0:00:02.3]}
72. Kg3 {[%clk 0:00:11.4]} 72... Re1 {[%clk 0:00:02.6]} 73. Kh4 {[%clk
0:00:12.1]} 73... Re5 {[%clk 0:00:03.1]} 74. Kg4 {[%clk 0:00:12.8]} 74... Re1
{[%clk 0:00:03.8]} 75. Kf5 {[%clk 0:00:13.7]} 75... Kg8 {[%clk 0:00:02.8]} 76.
Nh5 {[%clk 0:00:11]} 76... Rf1+ {[%clk 0:00:02.5]} 77. Kg5 {[%clk 0:00:11.3]}
77... Re1 {[%clk 0:00:02.5]} 78. Nf6+ {[%clk 0:00:10.7]} 78... Kg7 {[%clk
0:00:03.3]} 79. Nh5+ {[%clk 0:00:10.8]} 79... Kg8 {[%clk 0:00:02.9]} 80. Nf4
{[%clk 0:00:09.7]} 80... Kg7 {[%clk 0:00:02.4]} 81. Nh5+ {[%clk 0:00:07.8]}
81... Kg8 {[%clk 0:00:02]} 1/2-1/2

[Event "Early-Titled-Tuesday-Blitz-May-14-2024"]
[Site "Chess.com"]
[Date "2024.05.14"]
[Round "9"]
[White "NCchamp"]
[Black "dontcatchmeifyoucant"]
[Result "0-1"]
[WhiteElo "2302"]
[BlackElo "2425"]
[TimeControl "180+1"]
[EndTime "9:48:58 PDT"]
[Termination "dontcatchmeifyoucant won on time"]

1. d4 {[%clk 0:03:00.9]} 1... Nf6 {[%clk 0:02:59.2]} 2. Bg5 {[%clk 0:02:58.4]}
2... d5 {[%clk 0:02:54.4]} 3. e3 {[%clk 0:02:55.4]} 3... Nbd7 {[%clk 0:02:52.5]}
4. Bd3 {[%clk 0:02:53.7]} 4... e6 {[%clk 0:02:48.3]} 5. Nf3 {[%clk 0:02:50.9]}
5... c5 {[%clk 0:02:48.4]} 6. c3 {[%clk 0:02:50.1]} 6... h6 {[%clk 0:02:46.4]}
7. Bh4 {[%clk 0:02:49.2]} 7... Qb6 {[%clk 0:02:43.3]} 8. Qc1 {[%clk 0:02:48.6]}
8... Bd6 {[%clk 0:02:38.1]} 9. Nbd2 {[%clk 0:02:46.5]} 9... e5 {[%clk
0:02:30.8]} 10. dxe5 {[%clk 0:02:47.4]} 10... Nxe5 {[%clk 0:02:30.6]} 11. Nxe5
{[%clk 0:02:46.5]} 11... Bxe5 {[%clk 0:02:31.5]} 12. Nf3 {[%clk 0:02:47.1]}
12... Bc7 {[%clk 0:02:29.7]} 13. a4 {[%clk 0:02:32.5]} 13... O-O {[%clk
0:02:21.8]} 14. a5 {[%clk 0:02:31.5]} 14... Qc6 {[%clk 0:02:19.4]} 15. Qc2
{[%clk 0:02:24.5]} 15... Bg4 {[%clk 0:02:17.4]} 16. h3 {[%clk 0:02:13.5]} 16...
Bxf3 {[%clk 0:02:08.5]} 17. gxf3 {[%clk 0:02:14.4]} 17... d4 {[%clk 0:02:07.3]}
18. cxd4 {[%clk 0:02:02.1]} 18... Qxf3 {[%clk 0:02:03.6]} 19. Rg1 {[%clk
0:02:00.6]} 19... Bh2 {[%clk 0:01:42.9]} 20. Rf1 {[%clk 0:01:19.4]} 20... cxd4
{[%clk 0:01:33.4]} 21. Be2 {[%clk 0:01:04.4]} 21... Qxh3 {[%clk 0:01:05.8]} 22.
Bxf6 {[%clk 0:01:01.8]} 22... gxf6 {[%clk 0:01:06.7]} 23. Qe4 {[%clk 0:00:43.7]}
23... dxe3 {[%clk 0:00:43.4]} 24. Bd3 {[%clk 0:00:38.7]} 24... exf2+ {[%clk
0:00:33.4]} 25. Kd2 {[%clk 0:00:34.7]} 25... f5 {[%clk 0:00:26.9]} 26. Qxf5
{[%clk 0:00:34.5]} 26... Qxf5 {[%clk 0:00:26.1]} 27. Bxf5 {[%clk 0:00:34.9]}
27... Rad8+ {[%clk 0:00:23.9]} 28. Ke3 {[%clk 0:00:34.5]} 28... Rfe8+ {[%clk
0:00:21.8]} 29. Kf3 {[%clk 0:00:31.6]} 29... Re5 {[%clk 0:00:16.8]} 30. Bc2
{[%clk 0:00:27.4]} 30... Rg5 {[%clk 0:00:13.7]} 31. Rxf2 {[%clk 0:00:24.1]}
31... Be5 {[%clk 0:00:11.7]} 32. Rh1 {[%clk 0:00:19.6]} 32... Kg7 {[%clk
0:00:07.9]} 33. Be4 {[%clk 0:00:17]} 33... b6 {[%clk 0:00:07.3]} 34. axb6 {[%clk
0:00:15.5]} 34... axb6 {[%clk 0:00:08]} 35. Ra1 {[%clk 0:00:15]} 35... Rg3+
{[%clk 0:00:05.5]} 36. Ke2 {[%clk 0:00:14.4]} 36... Rd4 {[%clk 0:00:06.3]} 37.
Bf3 {[%clk 0:00:12.4]} 37... Rb4 {[%clk 0:00:05.9]} 38. Ra7 {[%clk 0:00:07.3]}
38... Rxb2+ {[%clk 0:00:06.4]} 39. Kf1 {[%clk 0:00:07.2]} 39... Rb1+ {[%clk
0:00:05.9]} 40. Ke2 {[%clk 0:00:07.2]} 40... Rb2+ {[%clk 0:00:06.5]} 41. Kf1
{[%clk 0:00:07.2]} 41... Rxf2+ {[%clk 0:00:07.4]} 42. Kxf2 {[%clk 0:00:08.1]}
42... Rg6 {[%clk 0:00:07.9]} 43. Bd5 {[%clk 0:00:07.3]} 43... Bd4+ {[%clk
0:00:07.4]} 44. Ke2 {[%clk 0:00:07.4]} 44... Rf6 {[%clk 0:00:07.4]} 45. Kd3
{[%clk 0:00:07.3]} 45... Bc5 {[%clk 0:00:07.9]} 46. Kc4 {[%clk 0:00:06.3]} 46...
Rf2 {[%clk 0:00:08]} 47. Ra8 {[%clk 0:00:05.5]} 47... h5 {[%clk 0:00:08.1]} 48.
Ra1 {[%clk 0:00:04]} 48... h4 {[%clk 0:00:08.5]} 49. Rh1 {[%clk 0:00:04.3]}
49... Rf4+ {[%clk 0:00:08.9]} 50. Kb5 {[%clk 0:00:04.6]} 50... Kg6 {[%clk
0:00:09]} 51. Rh2 {[%clk 0:00:04]} 51... Kg5 {[%clk 0:00:08.3]} 52. Rg2+ {[%clk
0:00:03]} 52... Kf6 {[%clk 0:00:07.5]} 53. Rh2 {[%clk 0:00:02.6]} 53... Rb4+
{[%clk 0:00:07]} 54. Kc6 {[%clk 0:00:02.5]} 54... Rf4 {[%clk 0:00:05.4]} 55. Rh3
{[%clk 0:00:02.6]} 55... Bf2 {[%clk 0:00:04.6]} 56. Kb7 {[%clk 0:00:02.5]} 56...
b5 {[%clk 0:00:04.1]} 57. Kc6 {[%clk 0:00:01.9]} 57... b4 {[%clk 0:00:04.4]} 58.
Rb3 {[%clk 0:00:02.2]} 58... Rg4 {[%clk 0:00:02.6]} 59. Rf3+ {[%clk 0:00:01.9]}
59... Ke5 {[%clk 0:00:01.8]} 60. Rxf2 {[%clk 0:00:02.8]} 60... Rg6+ {[%clk
0:00:01.3]} 61. Kc5 {[%clk 0:00:03.4]} 61... f5 {[%clk 0:00:01.6]} 62. Re2+
{[%clk 0:00:03.3]} 62... Kf6 {[%clk 0:00:02.3]} 63. Rf2 {[%clk 0:00:03]} 63...
h3 {[%clk 0:00:02.4]} 64. Kxb4 {[%clk 0:00:03]} 64... Rh6 {[%clk 0:00:02.1]} 65.
Be4 {[%clk 0:00:01.9]} 65... h2 {[%clk 0:00:02.1]} 66. Rxf5+ {[%clk 0:00:00.2]}
66... Ke6 {[%clk 0:00:02.6]} 67. Rf4 {[%clk 0:00:00.7]} 67... Rh3 {[%clk
0:00:02.1]} 68. Bf3 {[%clk 0:00:00.7]} 68... Ke5 {[%clk 0:00:02.4]} 69. Re4+
{[%clk 0:00:00.7]} 69... Kf5 {[%clk 0:00:02.6]} 70. Rg4 {[%clk 0:00:00.3]} 70...
Rxf3 {[%clk 0:00:02.7]} 71. Rh4 {[%clk 0:00:01]} 71... Rf2 {[%clk 0:00:03.2]}
72. Kc3 {[%clk 0:00:00.7]} 72... Kg5 {[%clk 0:00:03.7]} 73. Kd3 {[%clk
0:00:01.6]} 73... Kxh4 {[%clk 0:00:02.9]} 74. Ke3 {[%clk 0:00:02.5]} 74... h1=Q
{[%clk 0:00:03.3]} 0-1